bitfinex/quotes_ETHUSD_20250724
["timestamp","ask_amount","ask_price","bid_price","bid_amount"]
[1753365323160,4.501,3642.3,3641.5,0.55]
[1753365323355,4.501,3642.3,3641.5,3.29610083]
[1753365323544,4.501,3642.3,3641.5,0.55]
[1753365323744,4.501,3642.3,3641.7,2.74590753]
[1753365323998,4.501,3642.3,3641.5,3.29611553]
[1753365323999,4.501,3642.3,3641.5,0.55]
[1753365324189,4.9585,3642.3,3641.6,0.02746045]
[1753365324486,2.7456687,3642.1,3641.1,0.04]
[1753365324665,3.0,3641.9,3641.6,0.001]
[1753365324862,4.499,3641.8,3641.6,0.001]
[1753365325385,4.499,3641.8,3641.7,0.4671]
[1753365325386,4.5,3641.8,3641.7,0.4671]
[1753365325689,4.5,3641.8,3641.7,3.21307028]
[1753365325865,3.18395438,3642.8,3641.9,0.793]
[1753365326062,3.0,3642.6,3642.1,2.74565892]
[1753365326264,1.50989583,3643.9,3642.2,1.0171]
[1753365326480,1.50989583,3643.9,3642.8,0.55]
[1753365326481,0.04,3643.9,3642.8,0.55]
[1753365326778,0.1376,3643.6,3643.2,0.55]
[1753365326952,0.04,3643.9,3642.9,0.49455065]
[1753365326953,2.74438772,3643.8,3642.9,0.4671]
[1753365327156,0.4575,3643.7,3643.2,2.74482932]
[1753365327350,0.4788,3643.9,3642.9,3.21216233]
[1753365327351,0.04,3643.9,3643.3,0.4671]
[1753365327588,0.04,3643.9,3643.7,2.74440484]
[1753365327771,0.04,3643.9,3643.8,3.21148772]
[1753365327978,0.1776,3643.9,3643.8,3.21148772]
[1753365328665,0.1776,3643.9,3643.6,0.55]
[1753365328871,0.1776,3643.9,3643.6,2.74448379]
[1753365329391,0.1776,3643.9,3643.4,0.831]
[1753365329570,0.1776,3643.9,3643.3,0.1376]
[1753365329571,0.1376,3643.6,3643.3,2.74469501]
[1753365329777,0.1376,3643.4,3642.8,2.7451411]
[1753365329980,2.88246848,3643.2,3642.2,2.74559332]
[1753365330167,0.4522,3643.3,3642.5,2.74529658]
[1753365330168,0.1376,3642.6,3642.5,2.74529658]
[1753365330369,0.1376,3642.6,3642.1,0.9513]
[1753365330568,0.1376,3642.6,3642.4,2.74537332]
[1753365330793,0.1376,3642.6,3642.2,3.21189031]
[1753365330969,0.1376,3642.3,3642.0,2.74568912]
[1753365331402,0.1376,3642.1,3642.0,2.74568912]
[1753365331773,0.1376,3642.1,3642.0,3.21198912]
[1753365331969,0.1376,3642.1,3642.0,0.4663]
[1753365332307,0.1376,3642.1,3642.0,2.74574409]
[1753365332888,0.1376,3642.1,3642.0,3.21204409]
[1753365333089,0.1376,3642.1,3641.7,4.70583805]
[1753365333090,0.1376,3642.1,3641.9,2.74574841]
[1753365333490,0.5898,3642.1,3641.6,0.001]
[1753365333708,0.1376,3641.7,3641.6,0.001]
[1753365334516,0.5898,3641.7,3641.6,0.001]
[1753365334812,3.77457028,3641.7,3641.6,0.001]
[1753365335516,8.27357028,3641.7,3641.6,0.001]
[1753365335679,11.8612843,3641.7,3641.6,0.001]
[1753365336621,4.61631402,3641.7,3641.6,0.001]
[1753365336780,0.1376,3641.7,3641.6,0.4673]
[1753365336981,4.77411992,3642.5,3641.6,0.4673]
[1753365337181,0.1376,3641.7,3641.6,0.001]
[1753365337610,3.33577028,3641.7,3641.6,0.001]
[1753365337810,1.0286,3641.7,3641.6,0.001]
[1753365338209,0.5898,3641.7,3641.6,0.001]
[1753365338564,3.77457028,3641.7,3641.6,0.001]
[1753365338710,3.32237028,3641.7,3641.6,0.001]
[1753365338910,3.77457028,3641.7,3641.6,0.001]
[1753365339107,6.77457028,3641.7,3641.6,0.001]
[1753365339357,7.36175262,3641.7,3641.6,0.001]
[1753365339553,7.72505262,3641.7,3641.6,0.001]
[1753365340059,0.3633,3640.1,3639.6,0.001]
[1753365340350,5.74747918,3639.7,3639.6,0.001]
[1753365340553,3.72415235,3641.2,3639.6,0.001]
[1753365340725,0.26494288,3641.6,3639.6,0.4673]
[1753365340726,2.74709674,3640.3,3639.6,0.4673]
[1753365340931,2.74747227,3639.8,3639.6,0.001]
[1753365341248,2.74719595,3640.1,3639.6,0.001]
[1753365341451,3.0,3640.4,3639.7,3.21371455]
[1753365341654,0.3633,3641.2,3640.0,0.55]
[1753365341825,0.3633,3641.2,3640.2,0.55]
[1753365342014,2.74649821,3641.0,3639.9,0.8011]
[1753365342215,0.3633,3641.2,3640.0,1.0163]
[1753365342415,0.3633,3641.2,3640.1,0.55]
[1753365342624,4.593,3641.5,3640.5,2.74687106]
[1753365342836,4.593,3641.5,3640.2,2.74710176]
[1753365342837,2.74625011,3641.4,3640.6,0.4663]
[1753365343039,2.74632664,3641.3,3640.6,0.4663]
[1753365343224,5.74628014,3641.3,3640.6,3.21309116]
[1753365343430,3.0,3641.4,3640.4,0.55]
[1753365343637,2.74628211,3641.3,3640.5,2.74687542]
[1753365343839,3.0,3641.4,3640.4,0.55]
[1753365344157,0.4388,3641.5,3640.5,0.49376875]
[1753365344321,3.0,3641.4,3640.6,0.8051]
[1753365344522,0.3633,3641.7,3641.0,2.74643257]
[1753365344523,3.0,3641.6,3641.0,2.74643257]
[1753365345030,0.04,3641.9,3641.2,2.74629001]
[1753365345233,3.04,3641.9,3641.2,2.74629001]
[1753365345554,6.37178725,3641.9,3641.1,3.21270556]
[1753365345757,0.891,3641.8,3640.6,1.2714]
[1753365345930,3.0,3641.5,3640.6,1.2714]
[1753365346136,3.0,3641.5,3640.7,2.74672453]
[1753365346338,3.0,3641.5,3640.8,2.74662019]
[1753365346523,3.0,3641.5,3640.6,1.2714]
[1753365346524,0.4522,3641.7,3640.9,2.74651088]
[1753365346720,3.6260569,3641.9,3641.3,2.74621543]
[1753365346944,3.04,3641.9,3641.0,2.74647829]
[1753365347147,3.04,3641.9,3641.3,2.74621186]
[1753365347370,3.04,3641.9,3641.5,2.74611964]
[1753365347557,3.04,3641.9,3641.3,2.74625718]
[1753365347768,3.04,3641.9,3641.2,3.21264643]
[1753365348068,3.04,3641.9,3641.5,2.74609624]
[1753365348226,3.04,3641.9,3641.2,0.4663]
[1753365348427,3.04,3641.9,3641.4,2.74618242]
[1753365348428,3.62627951,3641.9,3641.4,2.74618242]
[1753365348774,3.7012756,3641.9,3641.5,2.74610599]
[1753365348975,3.70129886,3641.9,3641.4,0.4663]
[1753365349130,3.70129886,3641.9,3641.2,2.74633103]
[1753365349326,4.74000238,3641.9,3641.1,0.55]
[1753365349526,0.66129886,3641.8,3641.7,2.74597028]
[1753365349742,0.04,3641.9,3641.8,3.21219488]
[1753365350167,0.1776,3641.9,3641.8,3.21219488]
[1753365350666,0.04,3641.9,3641.8,4.25965382]
[1753365352252,0.04,3642.9,3642.8,3.2951411]
[1753365352465,0.04,3642.9,3642.6,7.45982516]
[1753365352666,0.1376,3642.8,3642.5,7.78766673]
[1753365352848,0.04,3642.9,3642.4,5.3389]
[1753365353046,0.1376,3642.5,3642.4,4.576]
[1753365353242,0.1376,3642.5,3642.4,7.32144256]
[1753365353443,0.1376,3642.5,3642.4,2.74544256]
[1753365353689,0.1376,3642.5,3642.3,2.74550865]
[1753365353841,2.74520875,3642.8,3642.2,0.4663]
[1753365354188,0.1376,3642.3,3642.0,3.50860938]
[1753365354330,2.74531864,3642.6,3642.0,0.7629]
[1753365354530,0.1376,3642.1,3641.8,4.571]
[1753365354732,0.4522,3642.5,3641.8,4.571]
[1753365354733,0.1376,3641.9,3641.8,2.74583725]
[1753365354932,0.1376,3641.9,3641.8,3.21213725]
[1753365355131,0.4401,3642.6,3641.8,3.21213725]
[1753365355132,0.25447945,3642.6,3642.3,2.74548853]
[1753365355373,0.1376,3642.4,3642.1,0.02745668]
[1753365355578,0.1376,3642.4,3642.3,2.74551794]
[1753365355932,0.1376,3642.4,3642.3,3.21181794]
[1753365356212,0.04,3642.9,3642.8,2.7451411]
[1753365356504,0.04,3642.9,3642.8,4.15139251]
[1753365356666,0.04,3642.9,3642.8,5.22989251]
[1753365358165,0.04,3642.9,3642.8,5.2024411]
[1753365358625,0.1376,3643.7,3643.6,2.74453836]
[1753365358771,0.002,3644.4,3643.8,2.74438772]
[1753365359172,0.25684968,3644.4,3643.8,3.22958772]
[1753365359394,0.25684968,3644.4,3643.8,3.70418772]
[1753365359607,0.1376,3644.1,3643.7,5.3388]
[1753365359927,0.1376,3644.1,3643.7,4.56]
[1753365360108,2.74418456,3644.1,3643.6,4.56]
[1753365360314,0.4401,3643.8,3642.9,0.7893]
[1753365360500,0.1376,3643.1,3642.2,0.4852]
[1753365360670,0.1376,3642.6,3642.3,2.74546177]
[1753365360871,0.1376,3642.6,3642.5,2.74536719]
[1753365361082,0.1376,3642.8,3642.5,0.02745367]
[1753365361268,0.1376,3642.8,3642.4,2.74541845]
[1753365361479,0.1376,3642.8,3642.3,0.1376]
[1753365361705,0.1376,3642.6,3642.2,0.4852]
[1753365362067,0.1376,3642.6,3642.4,2.74538527]
[1753365362271,0.1376,3642.6,3642.5,0.4852]
[1753365362990,0.1376,3642.6,3642.5,3.23056719]
[1753365363303,0.1376,3642.6,3642.5,0.4852]
[1753365363608,0.1376,3642.6,3618.4,12.0]
[1753365363609,1.0679,3642.6,3641.5,5.4884]
[1753365363812,0.1376,3642.2,3641.8,2.74587083]
[1753365364118,0.9303,3643.1,3641.9,0.98725819]
[1753365364417,0.1376,3642.4,3642.1,2.74565402]
[1753365364724,0.1376,3642.0,3641.5,1.279]
[1753365364876,0.9303,3642.4,3641.6,2.74603752]
[1753365364877,2.74564773,3642.2,3641.6,2.74603752]
[1753365365076,2.74564773,3642.2,3641.5,0.7938]
[1753365365077,0.1376,3641.7,3641.5,3.53989962]
[1753365365275,0.1376,3641.7,3641.6,2.74604569]
[1753365365508,5.74493253,3643.1,3642.0,2.7456739]
[1753365365509,0.4401,3642.7,3642.0,2.7456739]
[1753365365723,0.4401,3642.7,3642.1,2.74566751]
[1753365365922,0.4902,3642.8,3641.9,2.77326212]
[1753365365923,3.4902,3642.8,3642.2,2.74554657]
[1753365366083,0.4032,3642.9,3642.5,2.74531255]
[1753365366284,88.0,3642.6,3642.5,3.23051255]
[1753365366484,88.1376,3642.6,3642.5,3.23051255]
[1753365366704,88.0,3642.6,3642.5,3.23051255]
[1753365367444,88.0,3642.6,3642.5,3.70511255]
[1753365367777,71.05383639,3642.6,3642.5,4.25511255]
[1753365368119,42.46580381,3642.6,3642.5,5.02491255]
[1753365368616,43.05202159,3642.6,3642.5,4.47491255]
[1753365368823,43.05202159,3642.6,3642.0,5.3515]
[1753365368824,43.78459861,3642.6,3642.0,5.3515]
[1753365369029,43.78459861,3642.6,3641.8,0.4852]
[1753365369030,0.73257702,3642.4,3641.8,0.4852]
[1753365369212,0.1376,3642.3,3641.8,3.36868156]
[1753365369521,0.1376,3642.3,3641.9,2.74580747]
[1753365369686,0.1376,3642.3,3641.9,3.23100747]
[1753365370092,0.58621778,3642.5,3642.0,0.51265744]
[1753365370291,0.72381778,3642.5,3642.0,3.36851427]
[1753365370703,36.10537335,3642.6,3642.1,0.8204]
[1753365370900,0.04,3643.9,3643.8,3.56478772]
[1753365371103,0.04,3643.9,3643.8,8.94358772]
[1753365371309,0.04,3643.9,3643.8,9.49358772]
[1753365371832,0.04,3643.9,3643.8,8.75358772]
[1753365372531,0.04,3643.9,3643.8,4.18758772]
[1753365372730,0.04,3643.9,3643.3,1.3136]
[1753365372902,0.1376,3643.8,3643.6,4.575]
[1753365373994,0.1376,3643.8,3643.7,0.4852]
[1753365374327,0.04,3643.9,3643.7,3.39470767]
[1753365374531,0.04,3643.9,3643.8,0.4852]
[1753365375333,0.04,3643.9,3643.6,4.575]
[1753365375628,0.04,3643.9,3643.6,0.1376]
[1753365375807,0.04,3643.9,3643.7,4.572]
[1753365376146,0.9303,3643.8,3642.9,1.246]
[1753365376296,3.81229412,3643.8,3643.0,4.7066]
[1753365376492,0.04,3643.9,3643.3,2.74473421]
[1753365376730,0.1376,3643.7,3643.4,4.567]
[1753365377031,0.1376,3643.7,3643.4,5.0522]
[1753365377237,0.04,3643.9,3643.6,2.74449997]
[1753365377396,0.04,3643.9,3643.7,4.565]
[1753365377592,0.04,3643.9,3643.7,5.0502]
[1753365377913,0.04,3643.9,3643.7,7.79465903]
[1753365378112,0.04,3643.9,3643.7,4.565]
[1753365378311,0.1376,3643.8,3642.9,0.7608]
[1753365378506,0.9703,3643.9,3643.2,2.74478902]
[1753365378832,0.9703,3643.9,3643.0,7.33641872]
[1753365378833,0.1376,3643.8,3643.3,3.39498547]
[1753365378992,0.4032,3643.7,3642.5,0.7531]
[1753365379197,0.4032,3643.7,3642.6,4.565]
[1753365379198,0.1376,3642.9,3642.6,4.565]
[1753365379397,0.4401,3643.3,3642.7,0.02745216]
[1753365379616,0.4032,3643.7,3642.8,4.564]
[1753365379617,0.1376,3643.4,3642.8,4.564]
[1753365379816,3.4401,3643.8,3643.0,0.1376]
[1753365379817,0.1376,3643.5,3643.0,0.1376]
[1753365380034,0.1376,3643.5,3643.2,2.74479272]
[1753365380223,0.1376,3643.5,3643.3,7.30875002]
[1753365380421,0.1376,3643.5,3643.4,0.4852]
[1753365380731,0.04,3643.9,3643.4,1.2383]
[1753365380732,0.1376,3643.8,3643.4,1.2383]
[1753365380936,0.1376,3643.8,3643.3,0.1376]
[1753365381135,0.1376,3643.4,3642.8,0.8907]
[1753365381346,0.4032,3643.6,3642.4,0.4852]
[1753365381347,0.1376,3643.1,3642.9,4.562]
[1753365382032,0.55663847,3643.6,3643.0,0.5126499]
[1753365382232,0.1376,3643.4,3643.1,2.74489854]
[1753365382398,0.1376,3643.4,3643.2,0.4852]
[1753365383248,0.1376,3643.4,3642.9,4.72705065]
[1753365383401,0.1376,3643.4,3643.0,4.557]
[1753365383737,0.40927055,3643.6,3643.1,4.557]
[1753365383936,0.002,3644.4,3643.9,0.55]
[1753365384144,0.002,3644.4,3644.0,7.87767947]
[1753365384299,0.002,3644.4,3644.3,2.74401119]
[1753365384647,0.002,3644.4,3644.3,4.1254513]
[1753365384797,0.002,3644.4,3644.3,4.8007513]
[1753365384999,0.002,3644.4,3644.3,4.1982513]
[1753365385199,0.002,3644.4,3644.3,4.17081119]
[1753365385434,0.002,3644.4,3644.3,4.1982513]
[1753365386136,0.002,3644.4,3644.3,8.80481119]
[1753365386341,0.002,3644.4,3644.3,8.31961119]
[1753365386543,0.002,3644.4,3644.3,8.80481119]
[1753365388308,0.002,3644.4,3644.3,4.17081119]
[1753365388551,0.002,3644.4,3644.3,8.79481119]
[1753365388717,0.002,3644.4,3644.3,8.30961119]
[1753365388913,0.002,3644.4,3644.3,4.623]
[1753365389676,0.8907,3644.4,3644.3,4.617]
[1753365389813,0.574,3644.4,3644.3,4.617]
[1753365390012,0.1388,3644.4,3644.3,4.617]
[1753365390233,0.1388,3644.4,3644.3,7.36101119]
[1753365390446,0.002,3644.4,3644.3,7.81201119]
[1753365390657,0.002,3644.4,3644.3,5.068]
[1753365390868,0.002,3644.4,3644.3,4.617]
[1753365391072,1.0275,3644.4,3644.3,4.617]
[1753365391577,2.74431241,3643.9,3643.8,0.20486502]
[1753365391736,3.0,3643.8,3642.8,2.74513893]
[1753365391917,0.1376,3643.2,3642.9,4.613]
[1753365392117,0.8887,3643.1,3642.9,4.613]
[1753365392336,0.1376,3643.0,3642.9,4.613]
[1753365392536,2.74469695,3643.4,3642.9,4.613]
[1753365392754,0.8887,3643.3,3642.9,4.613]
[1753365393071,0.1376,3643.0,3642.9,4.613]
[1753365393230,3.0,3643.6,3642.9,5.09145065]
[1753365393554,6.63302493,3643.9,3642.9,5.09145065]
[1753365393555,0.1376,3643.5,3643.0,0.1376]
[1753365393771,0.1376,3643.5,3643.0,0.1650499]
[1753365394077,0.4032,3644.1,3643.1,0.6411]
[1753365394243,0.1376,3643.7,3643.2,0.1376]
[1753365394442,2.74462381,3643.5,3643.1,4.61]
[1753365394785,3.4032,3644.1,3643.1,4.61]
[1753365394786,0.1376,3643.3,3643.1,4.61]
[1753365394966,0.1376,3643.3,3642.6,0.96370566]
[1753365394967,0.8887,3643.2,3642.9,4.609]
[1753365395141,0.1376,3643.0,3642.9,4.609]
[1753365396378,0.1376,3643.3,3642.9,4.609]
[1753365396894,3.63358482,3643.2,3642.9,4.609]
[1753365397202,0.1376,3643.0,3642.9,4.609]
[1753365397977,0.5728,3643.0,3642.6,0.001]
[1753365398181,2.74521646,3642.7,3642.6,0.001]
[1753365398474,5.74521646,3642.7,3642.6,0.001]
[1753365398839,3.8887,3642.7,3642.6,0.001]
[1753365399034,6.63391646,3642.7,3642.6,0.001]
[1753365401287,7.03711646,3642.7,3642.6,0.001]
[1753365404202,4.2919,3642.7,3642.6,0.001]
[1753365404404,7.03711646,3642.7,3642.6,0.001]
[1753365408871,12.15711646,3642.7,3642.6,0.001]
[1753365409127,2.74559332,3642.2,3641.9,0.001]
[1753365409434,2.88319332,3642.2,3641.9,0.001]
[1753365409727,10.45319332,3642.2,3641.9,0.001]
[1753365410016,10.88839332,3642.2,3641.9,0.001]
[1753365410373,3.1376,3642.2,3641.9,0.001]
[1753365410720,6.32949332,3642.2,3641.9,0.001]
[1753365411020,6.78299332,3642.2,3641.9,0.001]
[1753365412177,7.18619332,3642.2,3641.9,0.001]
[1753365413001,6.69894409,3642.0,3641.9,1e-08]
[1753365413309,6.69894409,3642.0,3641.1,0.041]
[1753365413310,3.14954735,3641.2,3641.1,0.041]
[1753365413508,10.85014735,3641.2,3641.1,0.041]
[1753365413685,11.74994735,3641.2,3641.1,0.041]
[1753365414006,10.44594735,3641.2,3641.1,0.041]
[1753365414379,0.1376,3641.2,3641.1,0.041]
[1753365414579,4.6986,3641.2,3641.1,0.041]
[1753365415315,0.1376,3641.2,3641.1,0.041]
[1753365416326,0.1376,3643.0,3641.9,0.7616]
[1753365416529,0.1376,3642.5,3641.9,1.2126]
[1753365416713,2.74445347,3643.8,3641.3,3.1911]
[1753365416714,1.303,3642.6,3641.7,2.74589524]
[1753365416912,0.1376,3642.1,3641.7,2.74589524]
[1753365417218,0.1376,3642.1,3641.8,0.451]
[1753365417415,4.04830638,3642.6,3641.5,0.8315]
[1753365417416,2.74589514,3641.8,3641.5,0.8315]
[1753365417731,0.1376,3641.6,3641.1,0.041]
[1753365417927,3.64578867,3641.7,3641.1,0.041]
[1753365418118,0.1376,3641.2,3641.1,0.041]
[1753365418317,4.595,3641.9,3641.3,2.74626371]
[1753365418531,0.1376,3641.6,3641.4,0.451]
[1753365418824,0.1376,3641.6,3641.5,0.4972]
[1753365419332,0.1376,3641.6,3641.2,0.4972]
[1753365419530,0.1376,3641.6,3641.2,3.24354337]
[1753365419731,0.1376,3641.6,3641.2,0.4972]
[1753365420227,0.9338,3641.5,3641.1,0.041]
[1753365420428,0.1376,3641.2,3641.1,0.041]
[1753365420829,0.5839,3641.2,3641.1,0.041]
[1753365421234,3.33024735,3641.2,3641.1,0.041]
[1753365421533,3.81774735,3641.2,3641.1,0.041]
[1753365421734,0.1376,3641.2,3641.1,0.041]
[1753365425508,3.68014735,3641.2,3641.1,0.041]
[1753365425813,6.68014735,3641.2,3641.1,0.041]
[1753365426128,0.4463,3641.4,3641.1,0.041]
[1753365426330,7.576,3641.5,3641.1,0.5382]
[1753365426534,7.576,3641.5,3641.1,0.041]
[1753365427027,3.0,3642.0,3641.2,0.4972]
[1753365427227,0.9338,3641.9,3641.1,0.8555]
[1753365427429,0.9338,3641.8,3641.1,0.041]
[1753365427637,2.74634735,3641.2,3641.1,0.041]
[1753365427807,5.74634735,3641.2,3641.1,0.041]
[1753365428009,6.68014735,3641.2,3641.1,0.041]
[1753365428450,7.08334735,3641.2,3641.1,0.041]
[1753365428748,7.63334735,3641.2,3641.1,1e-08]
[1753365428920,37.63334735,3641.2,3641.1,1e-08]
[1753365429127,37.63334735,3641.2,3639.3,0.001]
[1753365429128,2.74747918,3639.7,3639.3,0.001]
[1753365429433,5.74785667,3639.2,3638.4,0.8145]
[1753365429652,5.74785667,3639.2,3638.2,0.4972]
[1753365429835,11.25665667,3639.2,3638.2,0.4972]
[1753365430052,11.25665667,3639.2,3638.3,2.74852449]
[1753365430241,3.0,3639.2,3638.5,0.20941357]
[1753365430426,2.74745725,3639.8,3639.0,0.8145]
[1753365430749,4.572,3639.7,3639.0,0.8145]
[1753365430913,2.74783336,3639.3,3638.6,3.56279066]
[1753365431108,0.4463,3640.1,3638.8,0.4972]
[1753365431350,5.74732822,3639.9,3638.8,0.4972]
[1753365431532,2.74779852,3639.3,3638.8,0.4972]
[1753365431725,0.9338,3639.8,3638.6,0.8145]
[1753365431926,3.0,3639.9,3638.6,0.8145]
[1753365432126,2.74785667,3639.2,3638.6,0.8145]
[1753365432360,3.15105667,3639.2,3638.2,0.4972]
[1753365432525,4.08485667,3639.2,3638.1,0.8231]
[1753365432866,7.08485667,3639.2,3639.1,0.041]
[1753365433369,37.08485667,3639.2,3639.1,1e-08]
[1753365433529,37.63485667,3639.2,3639.1,1e-08]
[1753365434163,2.74898974,3637.7,3637.6,0.001]
[1753365434467,0.4032,3638.1,3637.6,0.001]
[1753365434765,4.573,3638.0,3637.6,0.001]
[1753365434962,4.573,3637.9,3637.6,0.001]
[1753365435166,5.0193,3637.9,3637.6,0.001]
[1753365435650,0.1376,3637.7,3637.6,0.001]
[1753365435862,0.1376,3637.7,3637.6,2.75006531]
[1753365436165,0.1376,3637.8,3637.7,3.53488974]
[1753365436350,0.1376,3638.1,3637.7,3.72595963]
[1753365436664,0.1376,3637.8,3637.6,0.001]
[1753365437142,0.1376,3637.8,3637.7,0.4972]
[1753365437330,2.74852838,3638.4,3637.7,0.4972]
[1753365437664,0.1376,3637.9,3637.7,0.4972]
[1753365437980,0.1376,3637.9,3637.6,0.001]
[1753365438284,2.88658974,3637.7,3637.6,0.001]
[1753365438775,3.33288974,3637.7,3637.6,0.001]
[1753365438932,8.39138974,3637.7,3637.6,0.001]
[1753365439856,11.39138974,3637.7,3637.6,0.001]
[1753365441065,6.82038974,3637.7,3637.6,0.001]
[1753365441288,9.95689163,3638.5,3637.6,0.001]
[1753365441289,4.566,3638.0,3637.6,0.001]
[1753365441432,3.67388974,3637.7,3637.6,0.001]
[1753365441629,3.58958974,3637.7,3637.6,0.001]
[1753365441864,4.07708974,3637.7,3637.6,0.001]
[1753365442167,4.07708974,3637.7,3637.5,5.0]
[1753365442168,6.15226531,3637.6,3637.5,4.525]
[1753365442341,11.65216531,3637.6,3637.5,4.525]
[1753365442684,7.32406531,3637.6,3637.5,4.525]
[1753365442845,7.81156531,3637.6,3637.5,4.525]
[1753365443040,0.4032,3638.1,3637.5,4.525]
[1753365443239,2.74901483,3637.7,3637.5,4.525]
[1753365443464,4.575,3637.8,3637.5,5.0222]
[1753365443663,7.32392369,3637.8,3637.5,4.525]
[1753365444031,2.74906531,3637.6,3637.5,4.525]
[1753365444571,3.67396531,3637.6,3637.5,4.525]
[1753365445246,3.23656531,3637.6,3637.5,4.525]
[1753365445446,7.32306531,3637.6,3637.5,4.525]
[1753365445648,2.74900227,3637.7,3637.5,4.525]
[1753365445953,7.32198028,3637.8,3637.5,4.525]
[1753365446153,2.74899531,3637.7,3637.5,4.525]
[1753365446381,7.32197754,3637.8,3637.5,4.525]
[1753365446582,2.74904423,3637.7,3637.5,4.525]
[1753365446757,2.74906531,3637.6,3637.5,4.525]
[1753365447161,4.573,3637.8,3637.5,4.525]
[1753365447776,4.573,3637.8,3637.6,0.4972]
[1753365447973,2.74897483,3637.8,3637.5,4.525]
[1753365448182,9.879,3638.4,3637.5,4.525]
[1753365448183,9.879,3638.4,3637.6,1.3304]
[1753365448484,2.74869327,3638.1,3637.6,1.3304]
[1753365448688,2.74869327,3638.1,3637.6,0.8332]
[1753365448887,7.31554955,3638.3,3637.6,0.8332]
[1753365448888,2.74884811,3637.9,3637.7,0.4728]
[1753365449088,2.74861195,3638.2,3637.5,4.525]
[1753365449089,0.4374,3638.2,3637.5,4.525]
[1753365449258,2.74906531,3637.6,3637.5,4.525]
[1753365450965,3.64456531,3637.6,3637.5,4.525]
[1753365451380,2.88666531,3637.6,3637.5,4.525]
[1753365451758,3.78216531,3637.6,3637.5,4.525]
[1753365452152,2.88666531,3637.6,3637.5,4.525]
[1753365452455,3.78216531,3637.6,3637.5,4.525]
[1753365452765,2.88666531,3637.6,3637.5,4.525]
[1753365452967,7.44566531,3637.6,3637.5,4.525]
[1753365453293,7.44466531,3637.6,3637.5,4.525]
[1753365453504,0.1376,3637.6,3637.5,4.525]
[1753365453787,7.44366531,3637.6,3637.5,4.525]
[1753365453994,4.6946,3637.6,3637.5,4.9978]
[1753365454555,0.1376,3637.6,3637.5,4.9978]
[1753365454756,0.1376,3637.6,3637.5,5.9969]
[1753365454961,0.8955,3638.8,3637.6,0.55]
[1753365454962,0.1376,3638.0,3637.6,0.55]
[1753365455156,0.1376,3638.0,3637.8,0.55]
[1753365455357,0.1376,3638.0,3637.7,0.55]
[1753365455701,0.1376,3638.0,3637.8,0.4728]
[1753365456053,0.1376,3638.2,3638.0,0.8256]
[1753365456259,0.1376,3638.3,3638.1,1.0228]
[1753365456484,0.8406,3639.4,3638.3,0.55]
[1753365456485,2.74811205,3638.9,3638.3,0.55]
[1753365456686,4.551,3639.1,3638.5,0.55]
[1753365456894,0.1376,3639.1,3638.7,0.55]
[1753365457098,0.1376,3639.1,3638.9,0.55]
[1753365457357,0.1376,3639.4,3639.2,2.7477944]
[1753365457557,0.1376,3639.4,3639.3,1.7475]
[1753365457803,0.002,3639.6,3639.3,5.04528116]
[1753365458115,0.002,3639.6,3639.5,0.55]
[1753365458597,0.002,3639.6,3639.5,1.0228]
[1753365459461,0.002,3639.6,3639.3,5.3716]
[1753365459663,0.002,3639.6,3639.5,4.21953016]
[1753365459902,0.002,3639.6,3639.5,5.12773016]
[1753365460394,0.002,3639.6,3639.5,2.3801]
[1753365460789,0.002,3639.6,3639.5,6.476]
[1753365461301,0.002,3639.6,3639.5,6.9251]
[1753365461497,0.002,3639.6,3639.5,9.67273016]
[1753365461670,0.002,3639.6,3639.5,6.9251]
[1753365462066,0.002,3639.6,3639.5,1.4582]
[1753365462263,0.002,3639.6,3639.5,9.66773016]
[1753365465170,0.002,3639.6,3639.5,12.66773016]
[1753365465567,0.04,3639.9,3639.8,7.1216037]
[1753365465822,0.04,3639.9,3639.8,11.7872037]
[1753365466020,0.002,3640.2,3639.9,3.55]
[1753365466181,0.002,3640.2,3640.1,7.12137727]
[1753365466372,0.002,3640.2,3640.1,11.78597727]
[1753365466567,0.002,3640.2,3640.1,12.70787727]
[1753365466804,0.002,3640.2,3640.1,10.32323609]
[1753365467102,0.002,3640.2,3640.1,15.05465741]
[1753365467474,0.04,3640.9,3640.8,7.12974908]
[1753365467670,0.04,3640.9,3640.8,11.65274908]
[1753365467892,0.04,3640.9,3640.8,14.6546079]
[1753365468515,0.002,3641.6,3641.5,3.2961211]
[1753365468829,0.002,3641.6,3641.5,7.84945882]
[1753365469731,2.74804569,3641.6,3641.5,1.94235882]
[1753365469900,2.88564569,3641.6,3641.5,6.46435882]
[1753365470301,0.1396,3641.6,3641.5,7.01435882]
[1753365470611,0.002,3641.6,3641.5,7.48715882]
[1753365471119,2.74804569,3641.6,3641.5,7.01435882]
[1753365471322,2.74804569,3641.6,3641.5,6.46535882]
[1753365471658,2.88564569,3641.6,3641.5,1.94235882]
[1753365471795,3.80674569,3641.6,3641.5,1.94235882]
[1753365472346,2.74804569,3641.6,3641.5,2.49235882]
[1753365473011,3.20614569,3641.6,3641.5,1.94235882]
[1753365473347,3.66914569,3641.6,3641.5,1.94235882]
[1753365474307,4.40736217,3641.6,3641.5,1.94235882]
[1753365474526,4.40488369,3641.6,3641.5,1.94235882]
[1753365475309,3.66914569,3641.6,3641.5,1.94235882]
[1753365475526,4.66022763,3641.6,3641.5,1.94235882]
[1753365476098,4.37168963,3641.6,3641.5,1.94235882]